[Event "*** SCC Grand Prix: Titled Tuesday Blitz"]
[Site "Chess.com"]
[Date "2020.09.29"]
[Round "8"]
[White "mapleaff"]
[Black "aljado"]
[Result "1-0"]
[WhiteElo "2371"]
[BlackElo "2079"]
[TimeControl "180+1"]
[EndTime "11:33:03 PDT"]
[Termination "mapleaff won on time"]

1. d4 {[%clk 0:03:00.9]} 1... Nf6 {[%clk 0:02:56]} 2. c4 {[%clk 0:03:01.3]} 2...
g6 {[%clk 0:02:55.3]} 3. Nc3 {[%clk 0:03:01.6]} 3... d5 {[%clk 0:02:55.3]} 4.
Nf3 {[%clk 0:03:00.5]} 4... Bg7 {[%clk 0:02:53.3]} 5. h4 {[%clk 0:03:00.8]} 5...
dxc4 {[%clk 0:02:50]} 6. e4 {[%clk 0:02:59.3]} 6... c5 {[%clk 0:02:45.7]} 7. d5
{[%clk 0:02:58.5]} 7... Bg4 {[%clk 0:02:38.5]} 8. Bxc4 {[%clk 0:02:53.7]} 8...
O-O {[%clk 0:02:30.8]} 9. Be3 {[%clk 0:02:24]} 9... Nbd7 {[%clk 0:02:27.5]} 10.
Qc2 {[%clk 0:02:15.7]} 10... a6 {[%clk 0:02:23.6]} 11. Nh2 {[%clk 0:02:10.1]}
11... b5 {[%clk 0:02:20.9]} 12. Bf1 {[%clk 0:02:06.2]} 12... Qa5 {[%clk
0:02:01.1]} 13. Bd2 {[%clk 0:01:58.9]} 13... Qc7 {[%clk 0:01:37.8]} 14. Nxg4
{[%clk 0:01:51.8]} 14... Nxg4 {[%clk 0:01:36.5]} 15. Be2 {[%clk 0:01:46.7]}
15... Ngf6 {[%clk 0:01:34.3]} 16. h5 {[%clk 0:01:35.8]} 16... b4 {[%clk
0:01:33.8]} 17. Nd1 {[%clk 0:01:32.6]} 17... Qe5 {[%clk 0:01:30.9]} 18. Bf3
{[%clk 0:01:14.2]} 18... Nxd5 {[%clk 0:01:19.3]} 19. Kf1 {[%clk 0:01:10.5]}
19... N5f6 {[%clk 0:01:14.2]} 20. Ne3 {[%clk 0:01:08.6]} 20... Rad8 {[%clk
0:01:04.2]} 21. Nc4 {[%clk 0:01:05.1]} 21... Qc7 {[%clk 0:01:02.8]} 22. hxg6
{[%clk 0:01:00.2]} 22... fxg6 {[%clk 0:01:01.6]} 23. Ne3 {[%clk 0:00:41.6]}
23... Ne5 {[%clk 0:00:57.7]} 24. Be2 {[%clk 0:00:41]} 24... Qc6 {[%clk
0:00:29.8]} 25. f3 {[%clk 0:00:38.3]} 25... c4 {[%clk 0:00:23.7]} 26. Nxc4
{[%clk 0:00:35.1]} 26... Nxc4 {[%clk 0:00:21.9]} 27. Qxc4+ {[%clk 0:00:34.2]}
27... Qxc4 {[%clk 0:00:19.9]} 28. Bxc4+ {[%clk 0:00:35.1]} 28... Kh8 {[%clk
0:00:19.5]} 29. Ke2 {[%clk 0:00:31.6]} 29... a5 {[%clk 0:00:16.3]} 30. a3 {[%clk
0:00:27.2]} 30... bxa3 {[%clk 0:00:14.7]} 31. Rxa3 {[%clk 0:00:26.8]} 31... Rb8
{[%clk 0:00:11.6]} 32. Bc3 {[%clk 0:00:24.1]} 32... Rfc8 {[%clk 0:00:09.7]} 33.
Be6 {[%clk 0:00:22.8]} 33... Rc6 {[%clk 0:00:08.6]} 34. Rb3 {[%clk 0:00:18]}
34... Rxb3 {[%clk 0:00:06.7]} 35. Bxb3 {[%clk 0:00:18.9]} 35... Rb6 {[%clk
0:00:05.2]} 36. Ba4 {[%clk 0:00:17.1]} 36... Ng8 {[%clk 0:00:03.3]} 37. Kd3
{[%clk 0:00:15.5]} 37... Bxc3 {[%clk 0:00:02]} 38. bxc3 {[%clk 0:00:16.4]} 1-0

[Event "*** SCC Grand Prix: Titled Tuesday Blitz"]
[Site "Chess.com"]
[Date "2020.09.29"]
[Round "8"]
[White "elohunter1999"]
[Black "almo64"]
[Result "1-0"]
[WhiteElo "2507"]
[BlackElo "2690"]
[TimeControl "180+1"]
[EndTime "11:33:05 PDT"]
[Termination "elohunter1999 won by resignation"]

1. e4 {[%clk 0:03:00.9]} 1... c5 {[%clk 0:02:29.9]} 2. Nf3 {[%clk 0:03:00.3]}
2... d6 {[%clk 0:02:30.1]} 3. d4 {[%clk 0:03:00.2]} 3... cxd4 {[%clk 0:02:30.8]}
4. Nxd4 {[%clk 0:03:01.1]} 4... Nf6 {[%clk 0:02:31.4]} 5. Nc3 {[%clk 0:03:01.8]}
5... a6 {[%clk 0:02:32]} 6. Bg5 {[%clk 0:03:02.4]} 6... Qb6 {[%clk 0:02:28.5]}
7. Qd2 {[%clk 0:02:56]} 7... Nc6 {[%clk 0:02:28.2]} 8. Bxf6 {[%clk 0:02:53.1]}
8... gxf6 {[%clk 0:02:28.1]} 9. Nb3 {[%clk 0:02:53.8]} 9... e6 {[%clk
0:02:28.2]} 10. O-O-O {[%clk 0:02:53.6]} 10... Bd7 {[%clk 0:02:28.7]} 11. f4
{[%clk 0:02:52.9]} 11... O-O-O {[%clk 0:02:28.8]} 12. Be2 {[%clk 0:02:52.6]}
12... h5 {[%clk 0:02:29.3]} 13. Rhf1 {[%clk 0:02:52.1]} 13... h4 {[%clk
0:02:29.8]} 14. Rf3 {[%clk 0:02:49.9]} 14... Kb8 {[%clk 0:02:29.9]} 15. Kb1
{[%clk 0:02:23]} 15... Bc8 {[%clk 0:01:59.4]} 16. Bf1 {[%clk 0:02:08.5]} 16...
Bh6 {[%clk 0:01:53.7]} 17. Rh3 {[%clk 0:01:44.2]} 17... d5 {[%clk 0:01:36.3]}
18. exd5 {[%clk 0:01:08.7]} 18... e5 {[%clk 0:01:12.3]} 19. Rf3 {[%clk
0:00:48.3]} 19... exf4 {[%clk 0:01:05.2]} 20. Na4 {[%clk 0:00:39.2]} 20... Qc7
{[%clk 0:01:02]} 21. d6 {[%clk 0:00:37.9]} 21... Qd7 {[%clk 0:00:56.4]} 22. Nb6
{[%clk 0:00:31.1]} 22... Qg4 {[%clk 0:00:31.2]} 23. d7 {[%clk 0:00:27.8]} 23...
Bxd7 {[%clk 0:00:31]} 24. Qd6+ {[%clk 0:00:17.9]} 24... Ka7 {[%clk 0:00:29.4]}
25. Nxd7 {[%clk 0:00:18.5]} 25... Rxd7 {[%clk 0:00:28.3]} 26. Qc5+ {[%clk
0:00:15]} 26... Ka8 {[%clk 0:00:26.7]} 27. Re1 {[%clk 0:00:11.1]} 27... Rhd8
{[%clk 0:00:23.9]} 28. a3 {[%clk 0:00:09.9]} 28... Ne5 {[%clk 0:00:23.9]} 29.
Rc3 {[%clk 0:00:07.5]} 29... f3 {[%clk 0:00:20.2]} 30. gxf3 {[%clk 0:00:06.7]}
30... Nxf3 {[%clk 0:00:20.5]} 31. Re7 {[%clk 0:00:02.7]} 31... Rd1+ {[%clk
0:00:12.1]} 32. Ka2 {[%clk 0:00:03.1]} 32... Rxf1 {[%clk 0:00:10.6]} 33. Rxb7
{[%clk 0:00:03.1]} 33... Kxb7 {[%clk 0:00:04.2]} 34. Na5+ {[%clk 0:00:03.1]}
34... Kb8 {[%clk 0:00:03.8]} 35. Qc7+ {[%clk 0:00:03.3]} 1-0

[Event "*** SCC Grand Prix: Titled Tuesday Blitz"]
[Site "Chess.com"]
[Date "2020.09.29"]
[Round "8"]
[White "LiamVrolijk"]
[Black "Legendinunknown"]
[Result "1-0"]
[WhiteElo "2848"]
[BlackElo "2648"]
[TimeControl "180+1"]
[EndTime "11:33:07 PDT"]
[Termination "LiamVrolijk won by resignation"]

1. d4 {[%clk 0:02:56.5]} 1... Nf6 {[%clk 0:02:58]} 2. c4 {[%clk 0:02:47.6]} 2...
g6 {[%clk 0:02:57.5]} 3. Nc3 {[%clk 0:02:47.4]} 3... Bg7 {[%clk 0:02:54.6]} 4.
e4 {[%clk 0:02:47.3]} 4... d6 {[%clk 0:02:54.9]} 5. Be2 {[%clk 0:02:46.8]} 5...
O-O {[%clk 0:02:54.5]} 6. Nf3 {[%clk 0:02:47.1]} 6... e5 {[%clk 0:02:53.6]} 7.
O-O {[%clk 0:02:47.2]} 7... Nc6 {[%clk 0:02:53]} 8. d5 {[%clk 0:02:47.5]} 8...
Ne7 {[%clk 0:02:53.1]} 9. b4 {[%clk 0:02:47.7]} 9... Nh5 {[%clk 0:02:50.6]} 10.
Re1 {[%clk 0:02:45.8]} 10... f5 {[%clk 0:02:31.2]} 11. a4 {[%clk 0:02:43.5]}
11... Nf4 {[%clk 0:02:17.8]} 12. Bf1 {[%clk 0:02:41.3]} 12... fxe4 {[%clk
0:02:09.7]} 13. Nxe4 {[%clk 0:02:42.2]} 13... Bg4 {[%clk 0:02:09.1]} 14. Ra3
{[%clk 0:02:41.9]} 14... Nf5 {[%clk 0:01:57.4]} 15. h3 {[%clk 0:02:32.3]} 15...
Bxf3 {[%clk 0:01:30.4]} 16. Rxf3 {[%clk 0:02:32.2]} 16... Nd4 {[%clk 0:01:29.2]}
17. Ra3 {[%clk 0:02:24.9]} 17... a5 {[%clk 0:01:29.2]} 18. bxa5 {[%clk 0:02:17]}
18... Qd7 {[%clk 0:01:28.8]} 19. Kh2 {[%clk 0:02:09.2]} 19... Rxa5 {[%clk
0:01:28]} 20. g3 {[%clk 0:02:01.2]} 20... Nh5 {[%clk 0:01:27.1]} 21. Bd2 {[%clk
0:01:48.9]} 21... Ra6 {[%clk 0:01:23.8]} 22. Bg2 {[%clk 0:01:45.2]} 22... Nf6
{[%clk 0:01:22.4]} 23. Ng5 {[%clk 0:01:38]} 23... Rfa8 {[%clk 0:01:14.5]} 24.
Ne6 {[%clk 0:01:03]} 24... Nxe6 {[%clk 0:01:06.2]} 25. dxe6 {[%clk 0:01:02.3]}
25... Qxe6 {[%clk 0:01:07.1]} 26. Bxb7 {[%clk 0:00:57.1]} 26... Qxc4 {[%clk
0:01:06.9]} 27. Bg5 {[%clk 0:00:51.1]} 27... Qc5 {[%clk 0:00:53]} 28. Bxf6
{[%clk 0:00:36.7]} 28... Qxa3 {[%clk 0:00:19.3]} 29. Qd5+ {[%clk 0:00:31.9]}
29... Kf8 {[%clk 0:00:19.5]} 30. Qe6 {[%clk 0:00:22.2]} 30... Bxf6 {[%clk
0:00:16.8]} 31. Qxf6+ {[%clk 0:00:21.4]} 31... Ke8 {[%clk 0:00:16.8]} 32. Bxa8
{[%clk 0:00:13.9]} 32... Qxa4 {[%clk 0:00:15.3]} 33. Bd5 {[%clk 0:00:09.6]}
33... Qb4 {[%clk 0:00:07.4]} 34. Bf7+ {[%clk 0:00:08.5]} 34... Kf8 {[%clk
0:00:07.5]} 35. Be6+ {[%clk 0:00:09.4]} 35... Ke8 {[%clk 0:00:08.2]} 36. Qf7+
{[%clk 0:00:10.1]} 1-0

[Event "*** SCC Grand Prix: Titled Tuesday Blitz"]
[Site "Chess.com"]
[Date "2020.09.29"]
[Round "8"]
[White "karinachess1"]
[Black "davigator"]
[Result "1-0"]
[WhiteElo "2496"]
[BlackElo "2348"]
[TimeControl "180+1"]
[EndTime "11:33:08 PDT"]
[Termination "karinachess1 won by resignation"]

1. e4 {[%clk 0:03:00.9]} 1... c5 {[%clk 0:02:57.8]} 2. Nf3 {[%clk 0:03:00.8]}
2... Nc6 {[%clk 0:02:57.6]} 3. d4 {[%clk 0:03:00.3]} 3... cxd4 {[%clk
0:02:57.7]} 4. Nxd4 {[%clk 0:03:01.2]} 4... Nf6 {[%clk 0:02:57.9]} 5. Nc3 {[%clk
0:02:59.5]} 5... d6 {[%clk 0:02:56.8]} 6. g3 {[%clk 0:02:58.7]} 6... Bg4 {[%clk
0:02:51.4]} 7. f3 {[%clk 0:02:56.1]} 7... Bd7 {[%clk 0:02:46.2]} 8. Nb3 {[%clk
0:02:52.2]} 8... a6 {[%clk 0:02:43.8]} 9. Bg2 {[%clk 0:02:52.1]} 9... h5 {[%clk
0:02:43.4]} 10. Bg5 {[%clk 0:02:51]} 10... e6 {[%clk 0:02:40.6]} 11. Qd2 {[%clk
0:02:47.7]} 11... Be7 {[%clk 0:02:38.9]} 12. O-O {[%clk 0:02:21.9]} 12... Rc8
{[%clk 0:02:35]} 13. Rad1 {[%clk 0:02:13.4]} 13... Ne5 {[%clk 0:02:34.5]} 14.
Rfe1 {[%clk 0:01:37.3]} 14... b5 {[%clk 0:02:30.4]} 15. Nd4 {[%clk 0:01:32.8]}
15... Qc7 {[%clk 0:02:20.5]} 16. Nce2 {[%clk 0:01:25.9]} 16... Nc4 {[%clk
0:02:14.5]} 17. Qc1 {[%clk 0:01:25.9]} 17... b4 {[%clk 0:02:05.7]} 18. c3 {[%clk
0:01:10.5]} 18... bxc3 {[%clk 0:02:01.8]} 19. bxc3 {[%clk 0:01:03.7]} 19... Qa5
{[%clk 0:01:50.1]} 20. Bxf6 {[%clk 0:00:27.7]} 20... Bxf6 {[%clk 0:01:40.7]} 21.
Qb1 {[%clk 0:00:20.6]} 21... Qc5 {[%clk 0:01:30.6]} 22. Rc1 {[%clk 0:00:17]}
22... h4 {[%clk 0:01:29.8]} 23. Kf1 {[%clk 0:00:10.3]} 23... hxg3 {[%clk
0:01:28.7]} 24. hxg3 {[%clk 0:00:11.2]} 24... e5 {[%clk 0:01:18.1]} 25. Nb3
{[%clk 0:00:09.2]} 25... Ne3+ {[%clk 0:01:18.6]} 26. Kg1 {[%clk 0:00:09.5]}
26... Qa7 {[%clk 0:01:16.3]} 27. c4 {[%clk 0:00:08.1]} 27... Nxc4+ {[%clk
0:01:09.7]} 28. Kf1 {[%clk 0:00:04.9]} 28... Ne3+ {[%clk 0:01:07.7]} 29. Kg1
{[%clk 0:00:04.4]} 29... Nc2+ {[%clk 0:00:56.8]} 30. Kf1 {[%clk 0:00:03.9]}
30... Nxe1 {[%clk 0:00:55.7]} 31. Rxc8+ {[%clk 0:00:03.8]} 31... Bxc8 {[%clk
0:00:55.5]} 32. Qxe1 {[%clk 0:00:03.8]} 32... O-O {[%clk 0:00:54.9]} 33. Qd2
{[%clk 0:00:03.5]} 33... Qc7 {[%clk 0:00:52]} 34. Nc3 {[%clk 0:00:03.3]} 34...
Be6 {[%clk 0:00:52.5]} 35. Nd5 {[%clk 0:00:03.6]} 35... Bxd5 {[%clk 0:00:51.9]}
36. Qxd5 {[%clk 0:00:04.2]} 36... Rc8 {[%clk 0:00:50.7]} 37. Kg1 {[%clk
0:00:04.1]} 37... Qc1+ {[%clk 0:00:49.7]} 38. Nxc1 {[%clk 0:00:03.3]} 38...
Rxc1+ {[%clk 0:00:44.3]} 39. Kh2 {[%clk 0:00:04.2]} 39... Be7 {[%clk 0:00:41.6]}
40. Qb7 {[%clk 0:00:04.1]} 40... Bf8 {[%clk 0:00:39.4]} 41. Qxa6 {[%clk
0:00:04.5]} 41... g6 {[%clk 0:00:39.3]} 42. a4 {[%clk 0:00:04.9]} 42... Kg7
{[%clk 0:00:38.2]} 43. a5 {[%clk 0:00:05.5]} 43... Rc2 {[%clk 0:00:35.4]} 44.
Qa8 {[%clk 0:00:05.7]} 44... Ra2 {[%clk 0:00:29.3]} 45. a6 {[%clk 0:00:06]}
45... d5 {[%clk 0:00:29.4]} 46. exd5 {[%clk 0:00:05.6]} 46... Bc5 {[%clk
0:00:29.9]} 47. Qc6 {[%clk 0:00:05.5]} 47... Bg1+ {[%clk 0:00:29.5]} 48. Kxg1
{[%clk 0:00:05.3]} 1-0

[Event "*** SCC Grand Prix: Titled Tuesday Blitz"]
[Site "Chess.com"]
[Date "2020.09.29"]
[Round "8"]
[White "StellarChessPro"]
[Black "Matols"]
[Result "1-0"]
[WhiteElo "2497"]
[BlackElo "2270"]
[TimeControl "180+1"]
[EndTime "11:33:10 PDT"]
[Termination "StellarChessPro won on time"]

1. d4 {[%clk 0:03:00]} 1... Nf6 {[%clk 0:02:59.5]} 2. Bg5 {[%clk 0:02:59.9]}
2... Ne4 {[%clk 0:02:56.8]} 3. Bf4 {[%clk 0:02:59.7]} 3... d5 {[%clk 0:02:56.2]}
4. f3 {[%clk 0:03:00]} 4... Nf6 {[%clk 0:02:55]} 5. e4 {[%clk 0:02:58.3]} 5...
e6 {[%clk 0:02:44.8]} 6. a3 {[%clk 0:02:57.3]} 6... c5 {[%clk 0:02:37.9]} 7. e5
{[%clk 0:02:52.5]} 7... Nfd7 {[%clk 0:02:36.5]} 8. c3 {[%clk 0:02:49.3]} 8...
Nc6 {[%clk 0:02:33.8]} 9. Be3 {[%clk 0:02:48.6]} 9... Qb6 {[%clk 0:02:13.8]} 10.
Qd2 {[%clk 0:02:47.5]} 10... f6 {[%clk 0:02:04.4]} 11. f4 {[%clk 0:02:46.8]}
11... a5 {[%clk 0:01:42.1]} 12. Nf3 {[%clk 0:02:45.5]} 12... a4 {[%clk
0:01:36.3]} 13. Be2 {[%clk 0:02:28.5]} 13... Be7 {[%clk 0:01:35.4]} 14. O-O
{[%clk 0:02:28.1]} 14... O-O {[%clk 0:01:32.5]} 15. Kh1 {[%clk 0:02:27]} 15...
Qa5 {[%clk 0:01:10.8]} 16. Qc1 {[%clk 0:02:20.8]} 16... b6 {[%clk 0:01:06.7]}
17. Nbd2 {[%clk 0:02:19.9]} 17... Ba6 {[%clk 0:01:03.3]} 18. Bxa6 {[%clk
0:02:19.6]} 18... Qxa6 {[%clk 0:01:02.5]} 19. Qe1 {[%clk 0:02:16.4]} 19... f5
{[%clk 0:01:00.3]} 20. h3 {[%clk 0:02:12.1]} 20... Qc8 {[%clk 0:00:47.4]} 21. g4
{[%clk 0:02:10]} 21... Qe8 {[%clk 0:00:42]} 22. Qg3 {[%clk 0:02:01.7]} 22... g6
{[%clk 0:00:36.8]} 23. gxf5 {[%clk 0:01:55.7]} 23... Rxf5 {[%clk 0:00:36]} 24.
Rg1 {[%clk 0:01:53.9]} 24... Qf7 {[%clk 0:00:29.4]} 25. Nh2 {[%clk 0:01:46.1]}
25... Bf8 {[%clk 0:00:23.9]} 26. Ndf3 {[%clk 0:01:34.2]} 26... Bg7 {[%clk
0:00:22]} 27. Ng5 {[%clk 0:01:33.3]} 27... Qe7 {[%clk 0:00:21.7]} 28. Nf1 {[%clk
0:01:25.7]} 28... Raf8 {[%clk 0:00:20.4]} 29. Nd2 {[%clk 0:01:21.2]} 29... cxd4
{[%clk 0:00:19.6]} 30. cxd4 {[%clk 0:01:21.9]} 30... Na5 {[%clk 0:00:18.6]} 31.
Rg2 {[%clk 0:01:19.5]} 31... b5 {[%clk 0:00:16.3]} 32. Rag1 {[%clk 0:01:18.8]}
32... Nc4 {[%clk 0:00:16.4]} 33. Nxc4 {[%clk 0:01:18.5]} 33... bxc4 {[%clk
0:00:15.9]} 34. Bd2 {[%clk 0:01:19.4]} 34... Qd8 {[%clk 0:00:13.6]} 35. Nxe6
{[%clk 0:01:16.9]} 35... Qb6 {[%clk 0:00:09.5]} 36. Nxf8 {[%clk 0:01:13.8]}
36... Nxf8 {[%clk 0:00:09.1]} 37. Bc3 {[%clk 0:01:10.4]} 37... Ne6 {[%clk
0:00:09.2]} 38. Rf1 {[%clk 0:01:07.8]} 38... Nxd4 {[%clk 0:00:07.9]} 39. Qe3
{[%clk 0:01:05.2]} 39... Bxe5 {[%clk 0:00:05.8]} 40. fxe5 {[%clk 0:00:54]} 40...
Rxf1+ {[%clk 0:00:05.3]} 41. Rg1 {[%clk 0:00:51.2]} 41... Rxg1+ {[%clk
0:00:02.6]} 42. Qxg1 {[%clk 0:00:50.1]} 42... Qe6 {[%clk 0:00:01.3]} 43. Qxd4
{[%clk 0:00:44.4]} 43... Qxh3+ {[%clk 0:00:01.1]} 44. Kg1 {[%clk 0:00:45.3]}
44... Qg3+ {[%clk 0:00:01.2]} 45. Kf1 {[%clk 0:00:45.2]} 45... Qf3+ {[%clk
0:00:01.5]} 46. Qf2 {[%clk 0:00:43.5]} 46... Qh1+ {[%clk 0:00:01.7]} 47. Ke2
{[%clk 0:00:43.6]} 47... Qe4+ {[%clk 0:00:01.4]} 48. Kd2 {[%clk 0:00:41.5]}
48... Qd3+ {[%clk 0:00:01.2]} 49. Kc1 {[%clk 0:00:41.6]} 1-0

[Event "*** SCC Grand Prix: Titled Tuesday Blitz"]
[Site "Chess.com"]
[Date "2020.09.29"]
[Round "8"]
[White "Th3_Hound"]
[Black "Loy_Konstantin"]
[Result "0-1"]
[WhiteElo "2509"]
[BlackElo "2393"]
[TimeControl "180+1"]
[EndTime "11:33:12 PDT"]
[Termination "Loy_Konstantin won by resignation"]

1. e4 {[%clk 0:03:00.9]} 1... c5 {[%clk 0:02:59.6]} 2. Nf3 {[%clk 0:03:00.9]}
2... d6 {[%clk 0:03:00]} 3. d4 {[%clk 0:03:00.8]} 3... cxd4 {[%clk 0:03:00.9]}
4. Nxd4 {[%clk 0:03:01.6]} 4... Nf6 {[%clk 0:03:01.4]} 5. Nc3 {[%clk 0:03:02]}
5... g6 {[%clk 0:03:02]} 6. Be3 {[%clk 0:02:58.9]} 6... Bg7 {[%clk 0:03:02.2]}
7. f3 {[%clk 0:02:58.9]} 7... O-O {[%clk 0:03:02.8]} 8. Qd2 {[%clk 0:02:59.4]}
8... Nc6 {[%clk 0:03:03.3]} 9. O-O-O {[%clk 0:02:59.9]} 9... Bd7 {[%clk
0:03:03.5]} 10. Kb1 {[%clk 0:02:58.7]} 10... Ne5 {[%clk 0:03:03.2]} 11. h4
{[%clk 0:02:58.2]} 11... Rc8 {[%clk 0:03:00.4]} 12. h5 {[%clk 0:02:58.4]} 12...
Nxh5 {[%clk 0:02:59.8]} 13. Bh6 {[%clk 0:02:54.6]} 13... Bxh6 {[%clk 0:02:58.8]}
14. Qxh6 {[%clk 0:02:54.3]} 14... Rxc3 {[%clk 0:02:59.3]} 15. bxc3 {[%clk
0:02:54.5]} 15... Qa5 {[%clk 0:02:49.2]} 16. g4 {[%clk 0:02:49.3]} 16... Nf6
{[%clk 0:02:47.7]} 17. g5 {[%clk 0:02:29.2]} 17... Nh5 {[%clk 0:02:47.1]} 18. f4
{[%clk 0:02:27.5]} 18... Ng4 {[%clk 0:02:39.7]} 19. Rxh5 {[%clk 0:02:07.1]}
19... Nxh6 {[%clk 0:02:31.2]} 20. Rxh6 {[%clk 0:02:08]} 20... f6 {[%clk
0:01:42.2]} 21. Bc4+ {[%clk 0:02:04.9]} 21... Kg7 {[%clk 0:01:31.8]} 22. Rdh1
{[%clk 0:02:04.1]} 22... Rh8 {[%clk 0:01:30.6]} 23. f5 {[%clk 0:01:47.1]} 23...
Qxc3 {[%clk 0:01:21.6]} 24. fxg6 {[%clk 0:01:05.5]} 24... Qxd4 {[%clk
0:00:48.5]} 25. Rxh7+ {[%clk 0:00:58.6]} 25... Rxh7 {[%clk 0:00:37.7]} 26. gxh7
{[%clk 0:00:58.9]} 26... Kh8 {[%clk 0:00:38.3]} 27. g6 {[%clk 0:00:52]} 27... f5
{[%clk 0:00:38.4]} 28. Bb3 {[%clk 0:00:35.3]} 28... Qf6 {[%clk 0:00:29.2]} 29.
Rg1 {[%clk 0:00:31.8]} 29... Qg7 {[%clk 0:00:26.2]} 30. Bd5 {[%clk 0:00:27.1]}
30... f4 {[%clk 0:00:22]} 31. Bf7 {[%clk 0:00:24.6]} 31... Qd4 {[%clk
0:00:15.2]} 32. g7+ {[%clk 0:00:13.9]} 32... Qxg7 {[%clk 0:00:14.8]} 33. Rxg7
{[%clk 0:00:14.8]} 33... Kxg7 {[%clk 0:00:15.7]} 34. Bc4 {[%clk 0:00:12]} 34...
Kxh7 {[%clk 0:00:13.7]} 35. Kc1 {[%clk 0:00:12.5]} 35... Kg6 {[%clk 0:00:13.5]}
36. Kd2 {[%clk 0:00:12.9]} 36... Kf6 {[%clk 0:00:13.5]} 37. Ke2 {[%clk
0:00:12.7]} 37... Ke5 {[%clk 0:00:13.9]} 38. Kf3 {[%clk 0:00:12.9]} 38... Be8
{[%clk 0:00:10.8]} 39. Bd5 {[%clk 0:00:12.1]} 39... b6 {[%clk 0:00:10.8]} 40. a3
{[%clk 0:00:11.3]} 40... Bh5+ {[%clk 0:00:09.6]} 41. Kf2 {[%clk 0:00:11.8]}
41... e6 {[%clk 0:00:09.9]} 42. Bb3 {[%clk 0:00:10.1]} 42... Bg6 {[%clk
0:00:09.4]} 43. c3 {[%clk 0:00:08.5]} 43... Bxe4 {[%clk 0:00:09.7]} 0-1

[Event "*** SCC Grand Prix: Titled Tuesday Blitz"]
[Site "Chess.com"]
[Date "2020.09.29"]
[Round "8"]
[White "liczner"]
[Black "Shield12"]
[Result "1-0"]
[WhiteElo "2696"]
[BlackElo "2850"]
[TimeControl "180+1"]
[EndTime "11:33:13 PDT"]
[Termination "liczner won by resignation"]

1. e4 {[%clk 0:03:00.9]} 1... c5 {[%clk 0:03:00]} 2. Nf3 {[%clk 0:03:01]} 2...
d6 {[%clk 0:03:00.9]} 3. c3 {[%clk 0:02:59.2]} 3... Nf6 {[%clk 0:03:00.4]} 4. h3
{[%clk 0:02:59.2]} 4... g6 {[%clk 0:02:58.8]} 5. Bd3 {[%clk 0:02:59.5]} 5... Bg7
{[%clk 0:02:59.2]} 6. O-O {[%clk 0:02:59.9]} 6... O-O {[%clk 0:02:59.3]} 7. Bc2
{[%clk 0:03:00.4]} 7... e5 {[%clk 0:02:50.3]} 8. d4 {[%clk 0:03:00.3]} 8... exd4
{[%clk 0:02:44.5]} 9. cxd4 {[%clk 0:03:01.2]} 9... Nc6 {[%clk 0:02:45.1]} 10.
Nc3 {[%clk 0:02:59.3]} 10... Re8 {[%clk 0:02:39.2]} 11. Be3 {[%clk 0:02:43.4]}
11... b6 {[%clk 0:02:30.2]} 12. dxc5 {[%clk 0:02:11.1]} 12... dxc5 {[%clk
0:02:31.1]} 13. Qxd8 {[%clk 0:02:10.2]} 13... Rxd8 {[%clk 0:02:32]} 14. Rad1
{[%clk 0:01:47.4]} 14... Ba6 {[%clk 0:02:29.3]} 15. Rxd8+ {[%clk 0:01:40.6]}
15... Rxd8 {[%clk 0:02:30.2]} 16. Rd1 {[%clk 0:01:40.8]} 16... Rxd1+ {[%clk
0:02:29.4]} 17. Bxd1 {[%clk 0:01:40.2]} 17... Bd3 {[%clk 0:02:28.3]} 18. Nd2
{[%clk 0:01:29.5]} 18... Nd7 {[%clk 0:02:19.6]} 19. f4 {[%clk 0:01:26.8]} 19...
Nd4 {[%clk 0:02:13.6]} 20. Kf2 {[%clk 0:01:24.2]} 20... Kf8 {[%clk 0:02:12.4]}
21. Nf3 {[%clk 0:01:04.3]} 21... Nc2 {[%clk 0:02:09.7]} 22. Be2 {[%clk
0:01:02.6]} 22... Nxe3 {[%clk 0:02:00.6]} 23. Kxe3 {[%clk 0:00:57]} 23... Bxe2
{[%clk 0:01:53.5]} 24. Kxe2 {[%clk 0:00:56.4]} 24... Ke7 {[%clk 0:01:52.2]} 25.
Kd3 {[%clk 0:00:53.3]} 25... a6 {[%clk 0:01:51.3]} 26. e5 {[%clk 0:00:47.8]}
26... f6 {[%clk 0:01:50.6]} 27. Ke4 {[%clk 0:00:39.8]} 27... Ke6 {[%clk
0:01:47]} 28. g4 {[%clk 0:00:26.9]} 28... fxe5 {[%clk 0:01:46.1]} 29. Ng5+
{[%clk 0:00:26.7]} 29... Kd6 {[%clk 0:01:40.6]} 30. Nxh7 {[%clk 0:00:23.7]}
30... exf4 {[%clk 0:01:38.9]} 31. Kxf4 {[%clk 0:00:24.6]} 31... b5 {[%clk
0:01:38.6]} 32. Ng5 {[%clk 0:00:12.7]} 32... b4 {[%clk 0:01:38.6]} 33. Nge4+
{[%clk 0:00:12.8]} 33... Kc6 {[%clk 0:01:37.2]} 34. Nd1 {[%clk 0:00:13.2]} 34...
c4 {[%clk 0:01:34]} 35. h4 {[%clk 0:00:10.6]} 35... Ne5 {[%clk 0:01:26.4]} 36.
Kg5 {[%clk 0:00:06.3]} 36... Kd5 {[%clk 0:01:26.3]} 37. Nf6+ {[%clk 0:00:06.4]}
37... Ke6 {[%clk 0:01:26.7]} 38. Ne8 {[%clk 0:00:05.7]} 38... Bf8 {[%clk
0:01:24.7]} 39. Nc7+ {[%clk 0:00:05.8]} 39... Kf7 {[%clk 0:01:23.4]} 40. h5
{[%clk 0:00:05.2]} 40... Be7+ {[%clk 0:01:18.5]} 41. Kf4 {[%clk 0:00:05]} 41...
Bd6 {[%clk 0:01:18.7]} 42. Nxa6 {[%clk 0:00:03]} 42... Nd3+ {[%clk 0:01:12.7]}
43. Ke4 {[%clk 0:00:03]} 43... g5 {[%clk 0:01:13]} 44. Kd5 {[%clk 0:00:02.6]}
44... Be7 {[%clk 0:01:08.5]} 45. Kxc4 {[%clk 0:00:02.7]} 45... Ne5+ {[%clk
0:01:08.9]} 46. Kb5 {[%clk 0:00:02.4]} 46... Nxg4 {[%clk 0:01:09.8]} 47. Nxb4
{[%clk 0:00:02.6]} 47... Ne5 {[%clk 0:01:10.5]} 48. Nc6 {[%clk 0:00:02.6]} 48...
Nd3 {[%clk 0:01:06.9]} 49. Nxe7 {[%clk 0:00:01.8]} 49... Kxe7 {[%clk 0:01:07.8]}
50. a4 {[%clk 0:00:02]} 50... g4 {[%clk 0:01:08.2]} 51. b4 {[%clk 0:00:01.5]}
51... g3 {[%clk 0:01:08.3]} 52. Ne3 {[%clk 0:00:02]} 52... Nf4 {[%clk
0:01:09.2]} 53. h6 {[%clk 0:00:02.1]} 53... Kf7 {[%clk 0:01:07.8]} 54. h7 {[%clk
0:00:01.5]} 54... Kg7 {[%clk 0:01:05.6]} 55. a5 {[%clk 0:00:02.4]} 55... Kxh7
{[%clk 0:01:05.1]} 56. a6 {[%clk 0:00:02.9]} 56... Nd5 {[%clk 0:01:06]} 57. Ng2
{[%clk 0:00:02.9]} 57... Nc3+ {[%clk 0:01:05.9]} 58. Kc6 {[%clk 0:00:02.3]}
58... Na2 {[%clk 0:01:05.4]} 59. b5 {[%clk 0:00:02.5]} 59... Nb4+ {[%clk
0:01:05.6]} 60. Kc5 {[%clk 0:00:03.1]} 60... Nd5 {[%clk 0:01:06.5]} 61. Kxd5
{[%clk 0:00:03.1]} 1-0